[Event "*** SCC Grand Prix: Titled Tuesday Blitz"]
[Site "Chess.com"]
[Date "2020.08.11"]
[Round "7"]
[White "volkanyirik"]
[Black "stolencandy13"]
[Result "0-1"]
[WhiteElo "2265"]
[BlackElo "2423"]
[TimeControl "180+1"]
[EndTime "11:16:49 PDT"]
[Termination "stolencandy13 won by resignation"]

1. e4 {[%clk 0:03:00.9]} 1... c6 {[%clk 0:02:57.6]} 2. Nc3 {[%clk 0:03:01.8]}
2... d5 {[%clk 0:02:58.3]} 3. d4 {[%clk 0:03:01.2]} 3... dxe4 {[%clk 0:02:57.7]}
4. f3 {[%clk 0:03:01.3]} 4... exf3 {[%clk 0:02:53.3]} 5. Nxf3 {[%clk 0:03:01.8]}
5... Nf6 {[%clk 0:02:53.5]} 6. Bc4 {[%clk 0:03:00.7]} 6... Bf5 {[%clk
0:02:46.4]} 7. Ne5 {[%clk 0:03:00.1]} 7... e6 {[%clk 0:02:45.4]} 8. O-O {[%clk
0:02:56.2]} 8... Bg6 {[%clk 0:02:45.4]} 9. Bf4 {[%clk 0:02:55.6]} 9... Nbd7
{[%clk 0:02:41.6]} 10. Qe2 {[%clk 0:02:55.5]} 10... Be7 {[%clk 0:02:36.3]} 11.
Rad1 {[%clk 0:02:48.7]} 11... O-O {[%clk 0:02:30.1]} 12. h3 {[%clk 0:02:46.7]}
12... Nb6 {[%clk 0:02:28]} 13. Bb3 {[%clk 0:02:45.1]} 13... Nbd5 {[%clk
0:02:27.6]} 14. Nxd5 {[%clk 0:02:42.4]} 14... cxd5 {[%clk 0:02:21.3]} 15. Nxg6
{[%clk 0:02:39.5]} 15... hxg6 {[%clk 0:02:20]} 16. c3 {[%clk 0:02:39.7]} 16...
Rc8 {[%clk 0:02:06]} 17. Bc2 {[%clk 0:02:38.5]} 17... Nh5 {[%clk 0:02:05.3]} 18.
Be5 {[%clk 0:02:28]} 18... Bd6 {[%clk 0:01:59.1]} 19. g4 {[%clk 0:02:25.6]}
19... Ng3 {[%clk 0:01:57.9]} 20. Bxg3 {[%clk 0:02:24.5]} 20... Bxg3 {[%clk
0:01:58.8]} 21. Rf3 {[%clk 0:02:21.6]} 21... Bd6 {[%clk 0:01:47.7]} 22. Rdf1
{[%clk 0:02:03.9]} 22... Qh4 {[%clk 0:01:42.7]} 23. Kg2 {[%clk 0:02:03.4]} 23...
Rce8 {[%clk 0:01:35.8]} 24. Qb5 {[%clk 0:01:34.9]} 24... Qe7 {[%clk 0:01:34.3]}
25. Qe2 {[%clk 0:01:27.7]} 25... a6 {[%clk 0:01:34.2]} 26. Rh1 {[%clk 0:01:25]}
26... Qh4 {[%clk 0:01:33.3]} 27. Qe1 {[%clk 0:01:07.8]} 27... Qxe1 {[%clk
0:01:29.9]} 28. Rxe1 {[%clk 0:01:08.7]} 28... b5 {[%clk 0:01:27.7]} 29. Bb3
{[%clk 0:01:04.7]} 29... Rc8 {[%clk 0:01:25.6]} 30. Ref1 {[%clk 0:00:56.4]}
30... Rc7 {[%clk 0:01:25.7]} 31. h4 {[%clk 0:00:54.6]} 31... a5 {[%clk
0:01:14.7]} 32. h5 {[%clk 0:00:46.1]} 32... g5 {[%clk 0:01:08.9]} 33. Bc2 {[%clk
0:00:17]} 33... b4 {[%clk 0:01:03.1]} 34. Bb3 {[%clk 0:00:16.1]} 34... Bf4
{[%clk 0:00:58.4]} 35. R3f2 {[%clk 0:00:13]} 35... bxc3 {[%clk 0:00:56.5]} 36.
bxc3 {[%clk 0:00:13.9]} 36... Rxc3 {[%clk 0:00:57]} 0-1

[Event "*** SCC Grand Prix: Titled Tuesday Blitz"]
[Site "Chess.com"]
[Date "2020.08.11"]
[Round "7"]
[White "GustavoJuarezF"]
[Black "dosto07"]
[Result "0-1"]
[WhiteElo "2034"]
[BlackElo "2294"]
[TimeControl "180+1"]
[EndTime "11:16:51 PDT"]
[Termination "dosto07 won on time"]

1. e4 {[%clk 0:03:00.9]} 1... e5 {[%clk 0:02:59.3]} 2. Nf3 {[%clk 0:02:58.9]}
2... Nc6 {[%clk 0:02:59.3]} 3. Nc3 {[%clk 0:02:58.7]} 3... Nf6 {[%clk
0:02:58.3]} 4. d4 {[%clk 0:02:58.6]} 4... exd4 {[%clk 0:02:57.7]} 5. Nxd4 {[%clk
0:02:58.3]} 5... Bb4 {[%clk 0:02:57.9]} 6. Nxc6 {[%clk 0:02:56.3]} 6... bxc6
{[%clk 0:02:57.6]} 7. Bd3 {[%clk 0:02:56.4]} 7... d5 {[%clk 0:02:58]} 8. exd5
{[%clk 0:02:55.6]} 8... O-O {[%clk 0:02:57.4]} 9. O-O {[%clk 0:02:51.7]} 9...
cxd5 {[%clk 0:02:56.7]} 10. Bg5 {[%clk 0:02:44.7]} 10... c6 {[%clk 0:02:56.5]}
11. Qf3 {[%clk 0:02:39.4]} 11... h6 {[%clk 0:02:52.3]} 12. Bh4 {[%clk
0:02:12.4]} 12... g5 {[%clk 0:02:49.1]} 13. Qg3 {[%clk 0:01:29.7]} 13... Bd6
{[%clk 0:02:16.4]} 14. f4 {[%clk 0:01:28.6]} 14... Nh5 {[%clk 0:02:11.1]} 15.
Qf3 {[%clk 0:01:23.2]} 15... Nxf4 {[%clk 0:02:10.8]} 16. Bg3 {[%clk 0:01:19]}
16... Rb8 {[%clk 0:01:58.5]} 17. Bxf4 {[%clk 0:01:15.4]} 17... Bxf4 {[%clk
0:01:55.2]} 18. g3 {[%clk 0:01:15.2]} 18... Be5 {[%clk 0:01:51]} 19. Rae1 {[%clk
0:01:01.1]} 19... Bd4+ {[%clk 0:01:43.6]} 20. Kg2 {[%clk 0:00:57.6]} 20... Rxb2
{[%clk 0:01:24.3]} 21. Ne2 {[%clk 0:00:49.4]} 21... Bg7 {[%clk 0:01:19.2]} 22.
Bf5 {[%clk 0:00:32.7]} 22... Qf6 {[%clk 0:01:08.4]} 23. Qd3 {[%clk 0:00:20.9]}
23... Bxf5 {[%clk 0:01:00.5]} 24. Rxf5 {[%clk 0:00:19.3]} 24... Qe6 {[%clk
0:01:00.7]} 25. Ref1 {[%clk 0:00:16]} 25... Re8 {[%clk 0:00:56]} 26. R1f2 {[%clk
0:00:06.6]} 26... Qe4+ {[%clk 0:00:47.1]} 27. Qxe4 {[%clk 0:00:05.2]} 27... Rxe4
{[%clk 0:00:46.8]} 28. Rxf7 {[%clk 0:00:04]} 28... Rxe2 {[%clk 0:00:44.4]} 0-1

[Event "*** SCC Grand Prix: Titled Tuesday Blitz"]
[Site "Chess.com"]
[Date "2020.08.11"]
[Round "7"]
[White "Crazy_girl99"]
[Black "RobertoJBM"]
[Result "0-1"]
[WhiteElo "2499"]
[BlackElo "2709"]
[TimeControl "180+1"]
[EndTime "11:16:54 PDT"]
[Termination "RobertoJBM won by resignation"]

1. e4 {[%clk 0:03:00.9]} 1... c6 {[%clk 0:02:59.8]} 2. d4 {[%clk 0:03:00.5]}
2... d5 {[%clk 0:03:00.7]} 3. e5 {[%clk 0:03:00.5]} 3... Bf5 {[%clk 0:03:00.5]}
4. h4 {[%clk 0:02:59.8]} 4... c5 {[%clk 0:02:58]} 5. dxc5 {[%clk 0:02:48]} 5...
Nc6 {[%clk 0:02:57.5]} 6. Bb5 {[%clk 0:02:41.1]} 6... Qa5+ {[%clk 0:02:51.2]} 7.
Nc3 {[%clk 0:02:40.4]} 7... O-O-O {[%clk 0:02:51.7]} 8. Bxc6 {[%clk 0:02:28.7]}
8... bxc6 {[%clk 0:02:52.6]} 9. Ne2 {[%clk 0:02:25.3]} 9... e6 {[%clk
0:02:32.6]} 10. Nd4 {[%clk 0:02:21.6]} 10... Qxc5 {[%clk 0:02:29.7]} 11. Be3
{[%clk 0:02:19.2]} 11... Qc4 {[%clk 0:02:28.9]} 12. g4 {[%clk 0:01:46.4]} 12...
c5 {[%clk 0:02:21.9]} 13. gxf5 {[%clk 0:01:35.9]} 13... cxd4 {[%clk 0:02:21.8]}
14. Qxd4 {[%clk 0:01:33.3]} 14... Qxd4 {[%clk 0:02:17.9]} 15. Bxd4 {[%clk
0:01:34.2]} 15... a6 {[%clk 0:02:06.4]} 16. fxe6 {[%clk 0:01:33.5]} 16... fxe6
{[%clk 0:02:04.7]} 17. O-O-O {[%clk 0:01:34]} 17... Ne7 {[%clk 0:02:04.6]} 18.
Bb6 {[%clk 0:01:14.3]} 18... Rd7 {[%clk 0:02:01.3]} 19. Ne2 {[%clk 0:01:12.4]}
19... Nf5 {[%clk 0:01:51.2]} 20. Nf4 {[%clk 0:01:10.6]} 20... Rb7 {[%clk
0:01:49.9]} 21. Ba5 {[%clk 0:01:05.4]} 21... Kd7 {[%clk 0:01:49.2]} 22. c4
{[%clk 0:01:03.4]} 22... d4 {[%clk 0:01:14.2]} 23. Ne2 {[%clk 0:00:54.9]} 23...
Bc5 {[%clk 0:01:13.6]} 24. a3 {[%clk 0:00:54.3]} 24... Rc8 {[%clk 0:01:12.1]}
25. Bc3 {[%clk 0:00:41.9]} 25... Ke7 {[%clk 0:01:11.6]} 26. Nxd4 {[%clk
0:00:32.3]} 26... Bxd4 {[%clk 0:01:11]} 27. Bxd4 {[%clk 0:00:32.7]} 27... Rxc4+
{[%clk 0:01:11]} 28. Bc3 {[%clk 0:00:33]} 28... Nxh4 {[%clk 0:01:05.7]} 29. Kc2
{[%clk 0:00:30.3]} 29... g5 {[%clk 0:01:02.7]} 30. Rd4 {[%clk 0:00:20]} 30...
Rxd4 {[%clk 0:01:00.7]} 31. Bxd4 {[%clk 0:00:20.9]} 31... Kf7 {[%clk 0:01:00.9]}
32. f4 {[%clk 0:00:20.8]} 32... h6 {[%clk 0:00:58]} 33. fxg5 {[%clk 0:00:20.6]}
33... hxg5 {[%clk 0:00:58.9]} 34. Be3 {[%clk 0:00:20.5]} 34... Kg6 {[%clk
0:00:59.1]} 35. Rg1 {[%clk 0:00:20.3]} 35... Nf3 {[%clk 0:00:59.3]} 36. Rg3
{[%clk 0:00:20.9]} 36... Rf7 {[%clk 0:00:59.2]} 37. b4 {[%clk 0:00:18.5]} 37...
Kh5 {[%clk 0:00:59.3]} 38. a4 {[%clk 0:00:18]} 38... Kh4 {[%clk 0:00:59.2]} 39.
Rg2 {[%clk 0:00:17.9]} 39... Ne1+ {[%clk 0:00:59.2]} 0-1

[Event "*** SCC Grand Prix: Titled Tuesday Blitz"]
[Site "Chess.com"]
[Date "2020.08.11"]
[Round "7"]
[White "GoltsevDmitry2000"]
[Black "killer311"]
[Result "1-0"]
[WhiteElo "2620"]
[BlackElo "2443"]
[TimeControl "180+1"]
[EndTime "11:16:55 PDT"]
[Termination "GoltsevDmitry2000 won by resignation"]

1. e4 {[%clk 0:02:59.8]} 1... c6 {[%clk 0:02:59.9]} 2. Nf3 {[%clk 0:03:00.2]}
2... d5 {[%clk 0:03:00.8]} 3. exd5 {[%clk 0:03:01.1]} 3... cxd5 {[%clk
0:03:01.2]} 4. b3 {[%clk 0:03:01.1]} 4... Nc6 {[%clk 0:03:01.4]} 5. Bb2 {[%clk
0:03:00.8]} 5... Nf6 {[%clk 0:03:02]} 6. Be2 {[%clk 0:03:00.8]} 6... Bf5 {[%clk
0:02:59.8]} 7. O-O {[%clk 0:03:00.9]} 7... e6 {[%clk 0:03:00.1]} 8. d3 {[%clk
0:02:59.1]} 8... Bd6 {[%clk 0:02:57.9]} 9. Nbd2 {[%clk 0:02:59.5]} 9... h6
{[%clk 0:02:55.4]} 10. h3 {[%clk 0:02:59.1]} 10... O-O {[%clk 0:02:55.3]} 11.
Re1 {[%clk 0:02:59.6]} 11... Rc8 {[%clk 0:02:55]} 12. Nf1 {[%clk 0:03:00.1]}
12... Re8 {[%clk 0:02:50.6]} 13. Ne3 {[%clk 0:02:59.4]} 13... Bg6 {[%clk
0:02:46.7]} 14. c4 {[%clk 0:02:57.8]} 14... Bb4 {[%clk 0:02:38.2]} 15. Rf1
{[%clk 0:02:56.3]} 15... e5 {[%clk 0:02:33.9]} 16. a3 {[%clk 0:02:54.3]} 16...
Bf8 {[%clk 0:02:33.3]} 17. b4 {[%clk 0:02:44.6]} 17... d4 {[%clk 0:02:32.5]} 18.
Nc2 {[%clk 0:02:38.7]} 18... Qd7 {[%clk 0:02:23.3]} 19. b5 {[%clk 0:02:36.7]}
19... Nd8 {[%clk 0:02:17.3]} 20. Nd2 {[%clk 0:02:34.8]} 20... Ne6 {[%clk
0:02:15]} 21. Nb3 {[%clk 0:02:32.5]} 21... Nf4 {[%clk 0:02:13.2]} 22. Re1 {[%clk
0:02:28]} 22... a6 {[%clk 0:02:08.2]} 23. a4 {[%clk 0:02:27.6]} 23... Qf5 {[%clk
0:01:45.5]} 24. Nc1 {[%clk 0:01:49.7]} 24... Qg5 {[%clk 0:01:42.6]} 25. Bf3
{[%clk 0:01:32.5]} 25... Nxh3+ {[%clk 0:01:41.3]} 26. Kf1 {[%clk 0:01:32]} 26...
Nf4 {[%clk 0:01:36.4]} 27. g3 {[%clk 0:01:19.3]} 27... Nxd3 {[%clk 0:01:16]} 28.
Nxd3 {[%clk 0:01:16.8]} 28... e4 {[%clk 0:01:08.2]} 29. Bc1 {[%clk 0:00:58.7]}
29... Qf5 {[%clk 0:00:52.4]} 30. Nxd4 {[%clk 0:00:58.7]} 30... Qd7 {[%clk
0:00:50.8]} 31. Nf4 {[%clk 0:00:58.6]} 31... exf3 {[%clk 0:00:47.1]} 32. Nxf3
{[%clk 0:00:59.5]} 32... Rxe1+ {[%clk 0:00:39.2]} 33. Qxe1 {[%clk 0:01:00.4]}
33... Bd3+ {[%clk 0:00:35.8]} 34. Nxd3 {[%clk 0:00:56.2]} 34... Qxd3+ {[%clk
0:00:36.7]} 35. Kg2 {[%clk 0:00:56.7]} 35... Qxc4 {[%clk 0:00:35.3]} 36. Bf4
{[%clk 0:00:51.3]} 36... axb5 {[%clk 0:00:34.4]} 37. Rc1 {[%clk 0:00:51.3]}
37... Qe6 {[%clk 0:00:34.2]} 38. Qxe6 {[%clk 0:00:50.8]} 1-0

[Event "*** SCC Grand Prix: Titled Tuesday Blitz"]
[Site "Chess.com"]
[Date "2020.08.11"]
[Round "7"]
[White "WonderChampion"]
[Black "DACF2905"]
[Result "0-1"]
[WhiteElo "1982"]
[BlackElo "2226"]
[TimeControl "180+1"]
[EndTime "11:16:55 PDT"]
[Termination "DACF2905 won by checkmate"]

1. d4 {[%clk 0:03:00.9]} 1... Nf6 {[%clk 0:02:57.2]} 2. Bg5 {[%clk 0:02:58]}
2... Ne4 {[%clk 0:02:56.3]} 3. Bf4 {[%clk 0:02:54.8]} 3... d5 {[%clk 0:02:55.2]}
4. f3 {[%clk 0:02:48]} 4... Nf6 {[%clk 0:02:55]} 5. Nc3 {[%clk 0:02:41.3]} 5...
c6 {[%clk 0:02:52.5]} 6. e4 {[%clk 0:02:38.6]} 6... e6 {[%clk 0:02:52.1]} 7. Bg5
{[%clk 0:02:29.4]} 7... Be7 {[%clk 0:02:51.3]} 8. e5 {[%clk 0:02:21.1]} 8...
Nfd7 {[%clk 0:02:50.3]} 9. Bxe7 {[%clk 0:02:14.7]} 9... Qxe7 {[%clk 0:02:50]}
10. g3 {[%clk 0:01:51.4]} 10... a6 {[%clk 0:02:48.6]} 11. Bd3 {[%clk 0:01:46]}
11... c5 {[%clk 0:02:48.3]} 12. Be2 {[%clk 0:01:26.9]} 12... Nc6 {[%clk
0:02:46.3]} 13. dxc5 {[%clk 0:01:20.3]} 13... Ndxe5 {[%clk 0:02:38.6]} 14. f4
{[%clk 0:01:14.6]} 14... Nd7 {[%clk 0:02:37.2]} 15. Nf3 {[%clk 0:01:10.6]} 15...
Qxc5 {[%clk 0:02:37]} 16. Na4 {[%clk 0:01:02.2]} 16... Qa7 {[%clk 0:02:34.7]}
17. Nc3 {[%clk 0:00:54.7]} 17... Nf6 {[%clk 0:02:29.3]} 18. Ne5 {[%clk
0:00:45.5]} 18... Nxe5 {[%clk 0:02:26.4]} 19. fxe5 {[%clk 0:00:46.4]} 19... Nd7
{[%clk 0:02:26.5]} 20. Bf3 {[%clk 0:00:31]} 20... Nxe5 {[%clk 0:02:24.2]} 21.
Bg2 {[%clk 0:00:27]} 21... Bd7 {[%clk 0:02:18.6]} 22. Qe2 {[%clk 0:00:20.7]}
22... Nc6 {[%clk 0:01:55.2]} 23. Nxd5 {[%clk 0:00:18.9]} 23... O-O {[%clk
0:01:53.5]} 24. Ne3 {[%clk 0:00:16.4]} 24... Nd4 {[%clk 0:01:52.5]} 25. Qd3
{[%clk 0:00:15.8]} 25... Bc6 {[%clk 0:01:46.2]} 26. Bxc6 {[%clk 0:00:13.1]}
26... Nxc6 {[%clk 0:01:44.6]} 27. c3 {[%clk 0:00:12.4]} 27... Rad8 {[%clk
0:01:43.1]} 28. Qe2 {[%clk 0:00:11.1]} 28... Ne5 {[%clk 0:01:38.5]} 29. O-O
{[%clk 0:00:09.9]} 29... Rd3 {[%clk 0:01:31]} 30. Rae1 {[%clk 0:00:06.5]} 30...
Rfd8 {[%clk 0:01:30.2]} 31. Kh1 {[%clk 0:00:04.6]} 31... Rd2 {[%clk 0:01:30.1]}
32. Qh5 {[%clk 0:00:02.8]} 32... Ng6 {[%clk 0:01:28.2]} 33. Qh3 {[%clk
0:00:02.9]} 33... b5 {[%clk 0:01:25.6]} 34. Qg4 {[%clk 0:00:02.7]} 34... Rxb2
{[%clk 0:01:21.3]} 35. Qf3 {[%clk 0:00:02.4]} 35... Rdd2 {[%clk 0:01:17.1]} 36.
Ng4 {[%clk 0:00:02]} 36... h5 {[%clk 0:01:15.2]} 37. Rd1 {[%clk 0:00:02.1]}
37... hxg4 {[%clk 0:01:13.5]} 38. Qxg4 {[%clk 0:00:01.2]} 38... Rxh2# {[%clk
0:01:12.3]} 0-1

[Event "*** SCC Grand Prix: Titled Tuesday Blitz"]
[Site "Chess.com"]
[Date "2020.08.11"]
[Round "7"]
[White "Bulldog167"]
[Black "GM_dmitrij"]
[Result "0-1"]
[WhiteElo "2732"]
[BlackElo "2933"]
[TimeControl "180+1"]
[EndTime "11:17:03 PDT"]
[Termination "GM_dmitrij won by resignation"]

1. d4 {[%clk 0:03:00.9]} 1... Nf6 {[%clk 0:02:59.9]} 2. c4 {[%clk 0:03:01]} 2...
g6 {[%clk 0:03:00.4]} 3. Nc3 {[%clk 0:03:01.2]} 3... Bg7 {[%clk 0:03:00.9]} 4.
e4 {[%clk 0:03:01.5]} 4... O-O {[%clk 0:03:01.4]} 5. h3 {[%clk 0:03:02]} 5... d6
{[%clk 0:03:01.6]} 6. Be3 {[%clk 0:03:02.6]} 6... c5 {[%clk 0:03:01.2]} 7. Nf3
{[%clk 0:03:01]} 7... cxd4 {[%clk 0:02:59.6]} 8. Nxd4 {[%clk 0:03:01.9]} 8... b6
{[%clk 0:02:59.6]} 9. Qd2 {[%clk 0:03:00.8]} 9... Bb7 {[%clk 0:02:59.7]} 10. f3
{[%clk 0:03:01]} 10... Nbd7 {[%clk 0:02:59.2]} 11. h4 {[%clk 0:02:58.3]} 11...
h5 {[%clk 0:02:46]} 12. Bh6 {[%clk 0:02:53.8]} 12... Rc8 {[%clk 0:02:19.1]} 13.
Bxg7 {[%clk 0:02:53.3]} 13... Kxg7 {[%clk 0:02:19.2]} 14. O-O-O {[%clk 0:02:35]}
14... Ne5 {[%clk 0:02:18.1]} 15. b3 {[%clk 0:02:33.3]} 15... a6 {[%clk 0:02:17]}
16. Kb2 {[%clk 0:02:32.1]} 16... Rc5 {[%clk 0:02:00.7]} 17. Be2 {[%clk
0:02:28.9]} 17... Qc7 {[%clk 0:01:45.9]} 18. Na4 {[%clk 0:02:07]} 18... Ra5
{[%clk 0:01:44]} 19. Qb4 {[%clk 0:01:52.4]} 19... Nfd7 {[%clk 0:01:36.8]} 20. g4
{[%clk 0:01:34.2]} 20... hxg4 {[%clk 0:00:52]} 21. h5 {[%clk 0:01:35.1]} 21...
gxf3 {[%clk 0:00:38.7]} 22. hxg6 {[%clk 0:01:34.4]} 22... Nxg6 {[%clk
0:00:33.5]} 23. Nf5+ {[%clk 0:01:33]} 23... Rxf5 {[%clk 0:00:30.8]} 24. exf5
{[%clk 0:01:33.2]} 24... fxe2 {[%clk 0:00:31.2]} 25. fxg6 {[%clk 0:00:54.7]}
25... exd1=Q {[%clk 0:00:30.1]} 26. Rxd1 {[%clk 0:00:53.9]} 26... fxg6 {[%clk
0:00:29.8]} 27. Rg1 {[%clk 0:00:50.6]} 27... Ne5 {[%clk 0:00:28.3]} 28. Ka1
{[%clk 0:00:48.3]} 28... b5 {[%clk 0:00:24.8]} 29. cxb5 {[%clk 0:00:46.8]} 29...
axb5 {[%clk 0:00:25.7]} 30. Qxb5 {[%clk 0:00:47.5]} 30... Bc6 {[%clk 0:00:24.2]}
31. Qb6 {[%clk 0:00:42.6]} 31... Qxb6 {[%clk 0:00:23.3]} 32. Nxb6 {[%clk
0:00:43.5]} 32... Rb8 {[%clk 0:00:22.9]} 33. Na4 {[%clk 0:00:42.4]} 33... Bxa4
{[%clk 0:00:22.6]} 34. bxa4 {[%clk 0:00:43.3]} 34... Rb4 {[%clk 0:00:23]} 35. a5
{[%clk 0:00:44.2]} 35... Ra4 {[%clk 0:00:23.5]} 36. a6 {[%clk 0:00:45.1]} 36...
Kf6 {[%clk 0:00:23.7]} 37. a7 {[%clk 0:00:45.2]} 37... Rxa7 {[%clk 0:00:23.5]}
38. a4 {[%clk 0:00:45.3]} 38... g5 {[%clk 0:00:23.5]} 39. a5 {[%clk 0:00:46.2]}
39... g4 {[%clk 0:00:24.4]} 40. a6 {[%clk 0:00:46.8]} 40... Rxa6+ {[%clk
0:00:24.8]} 41. Kb2 {[%clk 0:00:47.7]} 41... Rc6 {[%clk 0:00:25.6]} 42. Ka2
{[%clk 0:00:47.6]} 42... Kg5 {[%clk 0:00:26.5]} 43. Ka1 {[%clk 0:00:48.3]} 43...
Rc5 {[%clk 0:00:27.4]} 44. Ka2 {[%clk 0:00:48.9]} 44... Nf3 {[%clk 0:00:27.7]}
45. Kb3 {[%clk 0:00:49.8]} 45... Nxg1 {[%clk 0:00:27.4]} 0-1

[Event "*** SCC Grand Prix: Titled Tuesday Blitz"]
[Site "Chess.com"]
[Date "2020.08.11"]
[Round "7"]
[White "emiliocordova"]
[Black "PIwan"]
[Result "0-1"]
[WhiteElo "2819"]
[BlackElo "2522"]
[TimeControl "180+1"]
[EndTime "11:17:04 PDT"]
[Termination "PIwan won by resignation"]

1. d4 {[%clk 0:03:00.9]} 1... d5 {[%clk 0:02:59.8]} 2. Nf3 {[%clk 0:03:01.8]}
2... Nf6 {[%clk 0:02:59.5]} 3. g3 {[%clk 0:03:01.7]} 3... g6 {[%clk 0:02:53.6]}
4. Bg2 {[%clk 0:03:01.2]} 4... Bg7 {[%clk 0:02:54.1]} 5. O-O {[%clk 0:03:02.1]}
5... O-O {[%clk 0:02:54.6]} 6. Nbd2 {[%clk 0:02:48.2]} 6... c6 {[%clk
0:02:47.7]} 7. Re1 {[%clk 0:02:38.1]} 7... Nbd7 {[%clk 0:02:38.8]} 8. c3 {[%clk
0:02:35.1]} 8... Re8 {[%clk 0:02:32.9]} 9. e4 {[%clk 0:02:34.5]} 9... dxe4
{[%clk 0:02:32.2]} 10. Nxe4 {[%clk 0:02:35.4]} 10... Nxe4 {[%clk 0:02:32.2]} 11.
Rxe4 {[%clk 0:02:36.3]} 11... e5 {[%clk 0:02:04.6]} 12. dxe5 {[%clk 0:02:27.7]}
12... Nxe5 {[%clk 0:02:01.9]} 13. Qxd8 {[%clk 0:02:28.6]} 13... Nxf3+ {[%clk
0:02:01.4]} 14. Bxf3 {[%clk 0:02:29.5]} 14... Rxd8 {[%clk 0:02:01.9]} 15. Bg5
{[%clk 0:02:29.9]} 15... Bf5 {[%clk 0:01:40.9]} 16. Re7 {[%clk 0:02:24.7]} 16...
Rd7 {[%clk 0:01:21.3]} 17. Rae1 {[%clk 0:02:20.5]} 17... f6 {[%clk 0:01:11.2]}
18. Rxd7 {[%clk 0:02:12.2]} 18... Bxd7 {[%clk 0:01:12.1]} 19. Re7 {[%clk
0:02:12.4]} 19... Rd8 {[%clk 0:01:04.9]} 20. Be3 {[%clk 0:01:47.9]} 20... Bf8
{[%clk 0:01:02.1]} 21. Re4 {[%clk 0:01:46.9]} 21... Bf5 {[%clk 0:00:56.9]} 22.
Rd4 {[%clk 0:01:39.4]} 22... Re8 {[%clk 0:00:45]} 23. g4 {[%clk 0:01:37.5]}
23... Be6 {[%clk 0:00:41.4]} 24. b4 {[%clk 0:01:09.9]} 24... Kf7 {[%clk
0:00:19.5]} 25. a3 {[%clk 0:01:05.8]} 25... a6 {[%clk 0:00:19.2]} 26. h3 {[%clk
0:01:05.6]} 26... Be7 {[%clk 0:00:16.4]} 27. a4 {[%clk 0:00:46.6]} 27... f5
{[%clk 0:00:16.5]} 28. Kg2 {[%clk 0:00:44.6]} 28... Bf6 {[%clk 0:00:16.5]} 29.
Rd3 {[%clk 0:00:42.1]} 29... fxg4 {[%clk 0:00:16.5]} 30. hxg4 {[%clk 0:00:42.2]}
30... Bc4 {[%clk 0:00:16]} 31. Rd7+ {[%clk 0:00:41.8]} 31... Re7 {[%clk
0:00:16.6]} 32. Rd8 {[%clk 0:00:38.3]} 32... Rxe3 {[%clk 0:00:15]} 0-1

[Event "*** SCC Grand Prix: Titled Tuesday Blitz"]
[Site "Chess.com"]
[Date "2020.08.11"]
[Round "7"]
[White "maxip32"]
[Black "ahachess"]
[Result "0-1"]
[WhiteElo "2455"]
[BlackElo "2305"]
[TimeControl "180+1"]
[EndTime "11:17:07 PDT"]
[Termination "ahachess won by resignation"]

1. e4 {[%clk 0:03:00.9]} 1... c6 {[%clk 0:02:59.3]} 2. d4 {[%clk 0:02:56.7]}
2... d5 {[%clk 0:02:59.3]} 3. f3 {[%clk 0:02:50.5]} 3... dxe4 {[%clk 0:02:52.6]}
4. fxe4 {[%clk 0:02:50.4]} 4... e5 {[%clk 0:02:53.1]} 5. Nf3 {[%clk 0:02:48.9]}
5... Be6 {[%clk 0:02:50.8]} 6. c3 {[%clk 0:02:42.3]} 6... Nf6 {[%clk 0:02:47.8]}
7. Bd3 {[%clk 0:02:42.1]} 7... Nbd7 {[%clk 0:02:44.7]} 8. O-O {[%clk 0:02:41.4]}
8... Bd6 {[%clk 0:02:44]} 9. Ng5 {[%clk 0:02:32.2]} 9... Nf8 {[%clk 0:02:43.5]}
10. Nxe6 {[%clk 0:02:24.7]} 10... Nxe6 {[%clk 0:02:43.4]} 11. Be3 {[%clk
0:02:18.6]} 11... Qe7 {[%clk 0:02:40]} 12. Nd2 {[%clk 0:02:16.7]} 12... Rd8
{[%clk 0:02:37.6]} 13. Qf3 {[%clk 0:01:57.5]} 13... Bc7 {[%clk 0:02:26.4]} 14.
Nb3 {[%clk 0:01:54.2]} 14... Bb6 {[%clk 0:02:11.5]} 15. Rad1 {[%clk 0:01:23.3]}
15... exd4 {[%clk 0:02:07.7]} 16. cxd4 {[%clk 0:01:22.6]} 16... Nxd4 {[%clk
0:02:03.5]} 17. Nxd4 {[%clk 0:01:22]} 17... Bxd4 {[%clk 0:02:03.7]} 18. Bxd4
{[%clk 0:01:22.1]} 18... Rxd4 {[%clk 0:02:00.3]} 19. e5 {[%clk 0:01:22.6]} 19...
Nd5 {[%clk 0:01:59.3]} 20. e6 {[%clk 0:01:18.9]} 20... Rf4 {[%clk 0:01:24.7]}
21. exf7+ {[%clk 0:01:11.8]} 21... Rxf7 {[%clk 0:01:17.7]} 22. Qh5 {[%clk
0:00:50.3]} 22... Nf6 {[%clk 0:01:16.6]} 23. Qh3 {[%clk 0:00:46.1]} 23... O-O
{[%clk 0:01:09.4]} 24. Kh1 {[%clk 0:00:16.1]} 24... Qb4 {[%clk 0:00:50.4]} 25.
a3 {[%clk 0:00:11.6]} 25... Qxb2 {[%clk 0:00:44.1]} 26. Rxf6 {[%clk 0:00:10.6]}
26... gxf6 {[%clk 0:00:43.3]} 27. Bc4 {[%clk 0:00:09.9]} 27... Qc2 {[%clk
0:00:37]} 28. Rf1 {[%clk 0:00:07.4]} 0-1